Cogmind - Beta 13 *** ADVENTURER MODE // 2024.04.08 @ 21:07:54 Player: the_guy Result: Destroyed by Y-54 Guardian with Gatling Laser Performance ------------- Evolutions (3) 1500 Regions Visited (4) 800 Robots Destroyed (105) 525 Value Destroyed (3162) 3162 Prototype IDs (5) 100 Alien Tech Used (0) 0 Bonus (17) 17 TOTAL SCORE: 6104 Bonus ------- High Alert Combat Kills 17 Cogmind --------- Core Integrity 0/700 Matter 300/300 Energy 155/160 System Corruption 8% Temperature Cool (6) Movement Rolling (205) Ox7 Location -7/Factory Parts ------- > --- POWER (1) -------- Light Nuclear Core > --- PROPULSION (3) --- Light Treads Compact Wheel > --- UTILITY (6) ------ Huge Storage Unit Improved Terrain Scan Processor Improved Light Armor Plating Reactive Plating Reactive Plating Reactive Plating > --- WEAPON (3) ------- Katana > --- INVENTORY (25) --- Nuclear Core Micro Nuclear Core Micro Nuclear Core Improved Heat Sink Large Battery (200) High-capacity Matter Pod (200) Core Analyzer Improved Utility Shielding Improved Shield Generator Shock Rifle Lightning Gun Lightning Gun Heavy Assault Rifle Minigun Mini Grenade Launcher Mini Grenade Launcher Remote Datajack Peak State ------------ > --- POWER ------------ Deuterium Engine > --- PROPULSION ------- Light Treads Advanced Treads > --- UTILITY ---------- Improved Heat Sink Huge Storage Unit Signal Interpreter Improved Terrain Scan Processor Hardened Medium Armor Plating Hacking Suite > --- WEAPON ----------- Lightning Gun Lightning Gun Heavy Assault Rifle > --- INVENTORY -------- Nuclear Core Light Nuclear Core Light Nuclear Core Light Nuclear Core Micro Nuclear Core Improved Heat Sink Large Battery High-capacity Matter Pod Core Analyzer Hardened Medium Armor Plating Improved Shield Generator Heavy EM Pulse Gun Lightning Gun Lightning Gun Lightning Gun Assault Rifle Assault Rifle Heavy Assault Rifle Improved Assault Rifle Minigun Flak Cannon Mini Grenade Launcher Mini Grenade Launcher Remote Datajack Katana [Rating: 38] Favorites ----------- Power Deuterium Engine Engine Deuterium Engine Power Core Light Nuclear Core Propulsion Light Treads Treads Light Treads Wheel Compact Wheel Utility Signal Interpreter Device Terrain Scanner Storage Huge Storage Unit Processor Signal Interpreter Hackware Hacking Suite Protection Hardened Medium Armor Plating Weapon Lightning Gun Energy Gun Lightning Gun Ballistic Gun Heavy Assault Rifle Ballistic Cannon Flak Cannon Launcher Mini Grenade Launcher Special Weapon Remote Datajack Slashing Weapon Katana Build | -11 -10 -9 -8 -7 ------- Run | Yrd Mat Mat Mat Fac Slots Evolved 6 | . . 2 2 2 Power . | . . . . . Propulsion 1 | . . . 1 . Utility 4 | . . 2 1 1 Weapon 1 | . . . . 1 Parts Attached 82 | 7 6 17 7 45 Power 13 | 1 1 3 2 6 Engine 8 | 1 . 3 1 3 Core 5 | . 1 . 1 3 Reactor . | . . . . . Propulsion 15 | 2 . 2 2 9 Treads 9 | 2 . 2 2 3 Leg . | . . . . . Wheel 6 | . . . . 6 Hover . | . . . . . Flight . | . . . . . Utility 22 | 2 1 5 . 14 Device 4 | 1 . 1 . 2 Storage 6 | 1 1 1 . 3 Processor 2 | . . 1 . 1 Hackware 1 | . . . . 1 Protection 9 | . . 2 . 7 Artifact . | . . . . . Weapon 32 | 2 4 7 3 16 Energy Gun 17 | 1 . 4 1 11 Energy Cannon . | . . . . . Ballistic Gun 11 | 1 4 2 1 3 Ballistic Cannon 1 | . . . 1 . Launcher 1 | . . 1 . . Special Weapon 1 | . . . . 1 Impact Weapon . | . . . . . Slashing Weapon 1 | . . . . 1 Piercing Weapon . | . . . . . Special Melee Weapon . | . . . . . Unidentified Prototypes 3 | . . 2 . 1 Corrupted Parts 1 | . . . 1 . System Corruption 6 | . . . 6 . Parts Lost 32 | . . 4 1 27 Power 3 | . . 1 . 2 Propulsion 11 | . . 2 . 9 Utility 7 | . . 1 . 6 Weapon 11 | . . . 1 10 Highest Loss Streak 8 | . . 2 1 8 To Critical Strikes . | . . . . . Average Slot Usage (%) 87 | . 100 91 88 82 Engine 6 | . 11 7 4 5 Core 2 | . 2 2 4 1 Treads 18 | . 28 21 25 12 Device 8 | . 14 10 9 7 Storage 8 | . 14 11 9 7 Processor 9 | . . 11 9 10 Hackware 1 | . . . . 3 Protection 7 | . . 4 9 8 Energy Gun 11 | . 7 8 14 12 Ballistic Gun 8 | . 20 12 3 5 Slashing Weapon 1 | . . . . 2 Naked Turns . | . . . . . Heaviest Build 125 | 14 20 100 103 125 Greatest Support 62 | 40 40 40 62 62 Greatest Overweight (x) 32 | . . 2 2 32 Average Overweight (x) 1 | . . . 1 2 Largest Inventory Capacity 25 | 8 10 25 25 25 Average Capacity 20 | 7 9 12 25 25 Most Carried 25 | 4 10 10 17 25 Average Carried 16 | 1 5 9 13 21 Final Capacity 25 | 8 10 25 25 25 Final Carried 17 | 2 8 10 17 17 Class Distribution -------------------- 45% | Mutant 22% | Tank 19% | Scavenger-Mutant 8% | Hacker-Tank 3% | Hacker-Mutant Dominant Class ---------------- Mutant | -10/Materials Mutant | -9/Materials Mutant | -8/Materials Tank | -7/Factory Resources | -11 -10 -9 -8 -7 ----------- Run | Yrd Mat Mat Mat Fac Matter Collected 1900 | 270 74 517 67 972 Remotely . | . . . . . Salvage Created 4570 | 200 595 723 358 2694 Parts 241 | 16 28 58 17 122 Haulers Intercepted . | . . . . . Recyclers Shooed 5 | . 2 . . 3 Parts Field Recycled . | . . . . . Retrieved Matter . | . . . . . Parts Self-Destructed . | . . . . . Prevented . | . . . . . Kills | -11 -10 -9 -8 -7 ------- Run | Yrd Mat Mat Mat Fac Combat Hostiles Destroyed 67 | . 9 19 5 34 Melee 9 | . . . . 9 Guns 54 | . 9 17 5 23 AOE 2 | . . 2 . . Classes Destroyed 12 | 3 2 5 1 1 Worker 6 | 2 . . . 4 Builder 2 | . . 1 . 1 Tunneler 6 | 5 . . . 1 Recycler 14 | 1 3 1 . 9 Operator 2 | . . 1 . 1 Watcher 8 | . . 4 2 2 Swarmer 10 | . 3 7 . . Grunt 33 | . 6 9 3 15 Brawler 2 | . . 1 . 1 Sentry 11 | . . 2 1 8 Hunter 5 | . . . 1 4 Programmer 6 | . . . . 6 Best Kill Streak 8 | 4 8 8 4 5 Combat Bots Only 6 | . 6 6 3 4 Max Kills in Single Turn 2 | 2 1 2 1 2 Gunslinging 1 | . . 1 . . Exploded 1 | . . 1 . . Melee 1 | . . . . 1 Uniques/NPCs Destroyed . | . . . . . Combat | -11 -10 -9 -8 -7 -------- Run | Yrd Mat Mat Mat Fac Hostile Shots Fired 952 | . 32 124 45 751 Missed 321 | . 9 43 11 258 Damage Taken 4919 | 30 192 690 354 3653 Core 873 | . 19 120 27 707 Absorbed by Shields . | . . . . . Ignored by Resistances 1600 | 8 60 216 102 1214 Regen/Repaired (Parts) 12 | . 12 . . . Core Remaining (%) 89 | 100 92 70 95 . Volleys Fired 225 | 11 36 57 16 105 Largest 3 | 2 2 2 2 3 Hottest 160 | 60 60 100 100 160 Shots Fired 466 | 22 72 106 30 236 Gun 457 | 22 72 100 29 234 Cannon 1 | . . . 1 . Launcher 6 | . . 6 . . Special 2 | . . . . 2 Kinetic 203 | 11 39 82 1 70 Thermal 70 | . . . . 70 Explosive 6 | . . 6 . . Electromagnetic 185 | 11 33 18 29 94 Robot Hit Streak 39 | 10 27 20 25 39 Robot Miss Streak 4 | 1 1 3 1 4 Penetration Max . | . . . . . Secondary Targets 10 | . 2 3 . 5 Max Gunslinging Chain 1 | . 1 1 . 1 Shots Hit Robots 379 | 15 48 74 26 216 Core Hits 183 | 8 20 36 13 106 Critical Kills 1 | . . 1 . . Critical Parts Destroyed . | . . . . . Critical Strikes 10 | . . 1 2 7 Destroy 1 | . . 1 . . Corrupt 6 | . . . 2 4 Sever 3 | . . . . 3 Melee Attacks 43 | . . . . 43 Impact . | . . . . . Slashing 43 | . . . . 43 Piercing . | . . . . . Sneak Attacks 5 | . . . . 5 Combat Hostiles . | . . . . . Follow-up Attacks . | . . . . . Damage Inflicted 7778 | 260 581 1416 500 5021 Guns 5603 | 155 540 1098 500 3310 Cannons . | . . . . . Explosions 721 | 105 41 313 . 262 Melee 1438 | . . . . 1438 Ramming 16 | . . 5 . 11 Kinetic 1657 | 37 181 823 . 616 Thermal 1943 | 105 41 23 . 1774 Explosive 290 | . . 290 . . Electromagnetic 2434 | 118 359 275 500 1182 Impact . | . . . . . Slashing 1438 | . . . . 1438 Piercing . | . . . . . Highest Corruption 8 | . . 3 6 8 Average Corruption 4 | . . 3 6 4 Corruption Purged . | . . . . . Corruption Blocked . | . . . . . Effects 82 | . . 10 18 54 Message Errors 21 | . . 2 5 14 Matter Fused 18 | . . 5 4 9 Heat Flow Errors 12 | . . . 5 7 Energy Discharges 6 | . . 1 3 2 Parts Rejected 1 | . . . . 1 Parts Fused 1 | . . . . 1 Data Loss (minor) 10 | . . 1 1 8 Data Loss (major) 7 | . . . . 7 Misfires 3 | . . 1 . 2 Alerts 3 | . . . . 3 Overload Shots . | . . . . . Overflow Damage 95 | 10 . . . 85 Projectiles . | . . . . . Explosions 38 | 10 . . . 28 Melee 57 | . . . . 57 Knockbacks . | . . . . . Impact . | . . . . . Kinetic . | . . . . . Secondary . | . . . . . Self-Inflicted Damage 107 | 31 . . . 76 Shots 2 | 1 . . . 1 Rammed 2 | . . 1 . 1 Targets Rammed 3 | . . 1 . 2 Kicked . | . . . . . Crushed 1 | . . . . 1 Highest Temperature 437 | 40 102 325 242 437 Average Temperature 87 | 20 40 100 101 96 Received Heat Transfer 2001 | . 99 348 108 1446 Effects 8 | . . . 3 5 Shutdowns 1 | . . . . 1 Interference 3 | . . . 3 . Matter Decay 3 | . . . . 3 Short Circuit 1 | . . . . 1 Siege Activations . | . . . . . Robots Corrupted . | . . . . . Combat Hostiles . | . . . . . Parts Fried 11 | 1 2 . 5 3 Impact Corruptions . | . . . . . Robots Melted 2 | . . . . 2 Combat Hostiles 2 | . . . . 2 Parts Melted 11 | . . . . 11 Heat Transferred 3778 | 150 100 50 . 3478 Parts Sabotaged . | . . . . . Parts Stolen . | . . . . . Parts Stripped . | . . . . . Power Chain Reactions 6 | 2 1 1 . 2 Alert | -11 -10 -9 -8 -7 ------- Run | Yrd Mat Mat Mat Fac Peak Influence 425 | 40 277 425 249 245 Initial 70 | . 22 35 70 . Average 117 | 14 132 255 113 74 Maximum Alert Level 2 | . 1 2 1 1 Low Security (%) 78 | 100 75 30 80 93 Level 1 20 | . 24 63 19 6 Level 2 1 | . . 6 . . Level 3 . | . . . . . Level 4 . | . . . . . Level 5 . | . . . . . High Security . | . . . . . Max Security . | . . . . . Squads Dispatched 19 | . 1 3 . 15 Investigation 6 | . 1 2 . 3 Extermination 5 | . . . . 5 Reinforcement 5 | . . 1 . 4 Assault . | . . . . . Garrison 3 | . . . . 3 Intercept . | . . . . . Searches Triggered . | . . . . . Construction Impeded . | . . . . . Haulers Reinforced 2 | . . . . 2 Active Scanning Responses . | . . . . . Cargo Convoy Interrupts . | . . . . . Stealth | -11 -10 -9 -8 -7 --------- Run | Yrd Mat Mat Mat Fac Distress Signals 5 | . . 2 1 2 Communications Jammed . | . . . . . Distress Signals . | . . . . . Times Spotted 89 | . 12 28 9 40 Peak Tracking Total 6 | . 6 5 5 4 Tactical Retreats 4 | . 1 1 1 1 Traps | -11 -10 -9 -8 -7 ------- Run | Yrd Mat Mat Mat Fac Traps Triggered 1 | . 1 . . . Indirectly . | . . . . . Trap Hack Attempts . | . . . . . Triggered . | . . . . . Disarmed . | . . . . . Reprogrammed . | . . . . . Reused . | . . . . . Traps Extracted . | . . . . . Installed . | . . . . . Triggered . | . . . . . Machines | -11 -10 -9 -8 -7 ---------- Run | Yrd Mat Mat Mat Fac Machines Disabled 5 | . . 2 . 3 Max in Single Turn 1 | . . 1 . 1 Machines Repaired . | . . . . . Machines Dismantled . | . . . . . Machines Sabotaged . | . . . . . Overloaded Fab Kills . | . . . . . Hacking | -11 -10 -9 -8 -7 --------- Run | Yrd Mat Mat Mat Fac Machines Accessed 13 | . 2 4 2 5 Terminals 9 | . 1 3 1 4 Fabricators . | . . . . . Repair Stations 2 | . 1 . . 1 Recycling Units . | . . . . . Scanalyzers 2 | . . 1 1 . Garrison Access . | . . . . . Total Hacks 45 | . 6 14 15 10 Successful 30 | . 3 7 14 6 Failed 15 | . 3 7 1 4 Catastrophic 3 | . 1 1 . 1 Database Lockouts . | . . . . . Manual . | . . . . . Terminals 26 | . 2 12 5 7 Fabricators . | . . . . . Repair Stations 7 | . 4 . . 3 Recycling Units . | . . . . . Scanalyzers 12 | . . 2 10 . Garrison Access . | . . . . . Terminal Hacks 15 | . 1 5 4 5 Record 5 | . . 2 1 2 Prototype ID Bank 1 | . . 1 . . Open DSF 1 | . . . . 1 Level Access Points 1 | . 1 . . . Emergency Access Points 1 | . . 1 . . Alert Level 1 | . . . 1 . Unreport Threat 1 | . . . 1 . Dispatch Records 1 | . . . 1 . Recall Investigation 1 | . . . . 1 Zone Layout 2 | . . 1 . 1 Fabricator Hacks . | . . . . . Repair Station Hacks 3 | . 2 . . 1 Scan Component 2 | . 1 . . 1 Repair 1 | . 1 . . . Recycling Unit Hacks . | . . . . . Scanalyzer 12 | . . 2 10 . Insert Component 6 | . . 1 5 . Analyze 6 | . . 1 5 . Garrison Access Hacks . | . . . . . Unauthorized Hacks . | . . . . . Terminals . | . . . . . Fabricators . | . . . . . Repair Stations . | . . . . . Recycling Units . | . . . . . Scanalyzers . | . . . . . Garrison Access . | . . . . . Data Cores Recovered 1 | . . . . 1 Used . | . . . . . Hacking Detections 12 | . 1 4 2 5 Full Trace Events 7 | . . 3 1 3 Feedback Events . | . . . . . Feedback Blocked . | . . . . . Robot Schematics Acquired . | . . . . . Robots Built . | . . . . . Authchips . | . . . . . Time . | . . . . . Total Robot Build Rating . | . . . . . Part Schematics Acquired 5 | . . 1 4 . Parts Built . | . . . . . Authchips . | . . . . . Time . | . . . . . Total Part Build Rating . | . . . . . Parts Repaired 1 | . 1 . . . Time 53 | . 53 . . . Parts Recycled . | . . . . . Recycled Matter . | . . . . . Retrieved Matter . | . . . . . Retrieved Components . | . . . . . Parts Scanalyzed 6 | . . 1 5 . Part Schematics Acquired 5 | . . 1 4 . Parts Damaged . | . . . . . Bothacking | -11 -10 -9 -8 -7 ------------ Run | Yrd Mat Mat Mat Fac Used RIF Installer . | . . . . . Robots Hacked 2 | . . . . 2 Non-combat 2 | . . . . 2 Combat . | . . . . . Robot Hacks Applied 2 | . . . . 2 parse_system 2 | . . . . 2 Relay Couplers Released . | . . . . . Fabnet Peak Effective % . | . . . . . Robots Rewired . | . . . . . Allies Hacked . | . . . . . Hacks Repelled . | . . . . . Allies | -11 -10 -9 -8 -7 -------- Run | Yrd Mat Mat Mat Fac Total Allies . | . . . . . Largest Group . | . . . . . Highest-Rated Group . | . . . . . Highest-Rated Ally . | . . . . . Total Orders . | . . . . . Ally Attacks . | . . . . . Total Damage . | . . . . . Kills . | . . . . . Allies Corrupted . | . . . . . Allies Melted . | . . . . . Intel | -11 -10 -9 -8 -7 ------- Run | Yrd Mat Mat Mat Fac Robot Analysis Total . | . . . . . Derelict Logs Recovered . | . . . . . Drone Launches . | . . . . . Drone Recoveries . | . . . . . Exploration | -11 -10 -9 -8 -7 ------------- Run | Yrd Mat Mat Mat Fac Turns Passed 5234 | 105 571 930 748 2880 Spaces Moved 1755 | 39 268 394 280 774 Core 9 | 6 . . . 3 Treads 1618 | 33 268 394 280 643 Legs . | . . . . . Wheels 128 | . . . . 128 Hover . | . . . . . Flight . | . . . . . Fastest Speed 50 | 50 160 160 235 108 Average Speed 237 | 143 160 181 242 295 Slowest Speed 1650 | 160 160 320 320 1650 Overloaded Moves . | . . . . . Propulsion Burnouts . | . . . . . Robots Hopped . | . . . . . Cave-ins Triggered . | . . . . . Exploration Rate (%) 25 | 4 48 36 24 15 Regions Visited 4 Branch Regions . Pre-discovered Areas . | . . . . . Known Exits Taken 3 | . 1 1 1 . Unknown Exits Taken 1 | 1 . . . . Scrap Searched . | . . . . . Spaces Dug . | . . . . . Terrain Destroyed 83 | 8 . 30 . 45 Melee . | . . . . . Projectile . | . . . . . AOE 83 | 8 . 30 . 45 Terrain Rammed . | . . . . . Walls Destroyed . | . . . . . Machines Disabled . | . . . . . Actions | -11 -10 -9 -8 -7 --------- Run | Yrd Mat Mat Mat Fac Total 2334 | 69 344 507 318 1096 Wait 98 | 2 22 6 1 67 Move 1751 | 38 267 393 279 774 Hop . | . . . . . Pick Up 92 | 10 10 19 12 41 Fast Attach 3 | . . 3 . . Attach 49 | 7 . 5 2 35 Detach 5 | . . . . 5 Swap 30 | . 6 9 5 10 Drop 35 | 1 3 14 3 14 Fire 225 | 11 36 57 16 105 Melee 43 | . . . . 43 Ram . | . . . . . Kick . | . . . . . Crush 3 | . . 1 . 2 Escape Stasis . | . . . . . Rewire . | . . . . . Trap . | . . . . . Miscellaneous . | . . . . . Route ------- -11/Scrapyard -10/Materials (discovered 4 exits: *Mat x3 / [*Min]) -9/Materials (discovered 2 exits: *Mat / [*Min]) -8/Materials -7/Factory History --------- Turn | Location | Event 46 | -11/Scrapyard | Discovered new exit (range 14) 106 | -11/Scrapyard | Entered Materials 211 | -10/Materials | Discovered new exit (range 9) 312 | -10/Materials | Build established: Mutant 406 | -10/Materials | Discovered new exit (range 9) 529 | -10/Materials | Identified exit to Materials 545 | -10/Materials | Repaired Corrupted Lgt. Nuclear Core? 677 | -10/Materials | Entered another Materials area 677 | -9/Materials | Evolved 2 slots: Utility x2 1115 | -9/Materials | Discovered new exit (range 15) 1427 | -9/Materials | Discovered new exit (range 13) 1604 | -9/Materials | Identified exit to Materials 1607 | -9/Materials | Entered another Materials area 1607 | -8/Materials | Evolved 2 slots: Propulsion x1, Utility x1 2311 | -8/Materials | Discovered new exit (range 7) 2353 | -8/Materials | Identified exit to Factory 2355 | -8/Materials | Entered Factory 2355 | -7/Factory | Evolved 2 slots: Utility x1, Weapon x1 2651 | -7/Factory | Build established: Tank 3834 | -7/Factory | Build established: Hacker-Tank 4039 | -7/Factory | Lost 4 parts (1n3w) 4210 | -7/Factory | Lost 3 parts (2u1w) 4499 | -7/Factory | Build established: Scavenger-Mutant 4789 | -7/Factory | Garrison activated, responded to threat 4801 | -7/Factory | Core integrity fell below 50% 4867 | -7/Factory | Lost 8 parts (1p1n3u3w) 4965 | -7/Factory | Core integrity fell below 20% 5045 | -7/Factory | Lost 3 parts (1p2n) 5235 | -7/Factory | Destroyed by Y-54 Guardian with Gatling Laser Last Messages --------------- 05145_ Sneak attack on R-06 Scavenger. 05145_ R-06 Scavenger destroyed. 05153_ Acquired Shock Rifle. 05160_ Acquired Mic. Nuclear Core. 05169_ THZUTSHRVZ4JN:UDX|DA>,IJD6ML, 05172_ Acquired Com. Wheel. 05187_ HJ3S0>VM/F7D BRC0R%G 05207_ G-47 Trooper destroyed. 05213_ Critical hit (Burn: +37). 05215_ G-47 Trooper destroyed. 05216_ Acquired 10 matter. 05217_ ,QAH5XD=H |,TXGRGSK1UKJ%TEVJMKY EY7W 05227_ R-06 Scavenger collects Aluminum Leg. 05230_ Y-54 Guardian destroyed. 05232_ Y-54 Guardian Imp. Light Armor Plating severed. 05233_ R-06 Scavenger collects Imp. Light Armor Plating. 05235_ Sneak attack on R-06 Scavenger. 05235_ R-06 Scavenger destroyed. Map ----- +----------------------------------------------------+ | ????????#??# #???? | | ?########??# #???? | | ?# #??#########+################### #???? | | ?# """ ##??##?## #??????#??????# #???? | | ## """ #???????# ##??#?????????# #?# ? | | ?# """ #?#?????# #???#?##????#?# #?? ? | | ?# #???????# #?#???????????# ##??? | | ?# #?????#?# ##?#?#??#???#?#^ #???? | | #####+########### #??????????#?##^^ #???? | | ????# + #??????????#??# #?#?? | | ??#?# ########### #??#?????#????# ##### | | ???## ##?#?#????# ##?#??#???????#% | | #### #########################??#??### | | % [ T + #??##????# | | ### ####### ##### ########## | | " """"" #???# #??## %+ | | #"""""""##??# # """ #% ############## | | # "#??# # """ # #= # | | # "##?# # """ # %+%""""""""" # | | / "#??# ######## ## + | | # "#### ^ ######## ##! # | | # "#??######### ##!== "T""" # | | +##"#+#""###????######+##[ ############### | | =!# # # #???#??# %#*= #??#####??#???###+ | | *%### ####??????# %Y!! #?#??#?#?????? ?? | | "%#?# #?????????# #@##### #???????#??#? ???? | | "=#?# #?????????###+#####%#???# ###??????????????? | | "%### ###?????????# #?###r###?# #???#????#??? ? ?? | | "!# % ########### ### != =#?? ????#??????????? ? | | !*# % "" #?? ????###????? ?? ?? | | *%/ % = ! "T #?? #??????????#?????? | | !# !% #?? ?#???????????????? | | " # ############+## #?? ???#???????#?????? | | " ##% ##????# ###+####? ?????????????????? | | " ## #?????# # #? ?????????????????? | | " ##% #?????# # """" #???????????????????? | | ## #?????# # """" #???????????????????? | | #### #?????# !!! # """" #???????????????????? | | ??? ?????# ! ! # """" #???????????????????? | | ?? ????# ! # #???????????????????? | | ? ????# #+######???????????????????? | | ? #???# # #????????????????????????? | | #???#######+## #????????????????????????? | | #?????????# #???????? #???????????? | | ## #?????????# ### T ????????????? | | ?####+####?????????# ^ "" ?????????????? | | ???????????????????# ^ #???????????? | | ???????????????????###[^^""" ## #???????????? | | ?????????????????????#[[[""" #?????#????????????? | | ?????????????????????#[ """ #??????????????????? | +----------------------------------------------------+ Best States ------------- Heat Dissipation 48 Energy Generation 16 Energy Capacity 475 Matter Stores 470 Matter Capacity 500 Sight Range 16 Terrain Scan Range 16 Terrain Scan Density 110 Armor Coverage 600 Resistance: KI 40 Resistance: TH 20 Resistance: EX 20 Resistance: EM 20 Resistance: I 20 Resistance: S 20 Resistance: P 20 Evasion (%) 50 Recoil Reduction 3 Offensive Hacking 20 Item Schematics ----------------- Assault Rifle | -9/Materials | Scanalyzed Flak Cannon | -8/Materials | Scanalyzed Mni. Grenade Launcher | -8/Materials | Scanalyzed Hvy. Assault Rifle | -8/Materials | Scanalyzed Shock Rifle | -8/Materials | Scanalyzed Robot Schematics ------------------ None Fabricated ------------ Nothing Alien Tech Used ----------------- None Achievements -------------- It's Just You Challenges ------------ None Game ------ Seed WardroneGammaSystem Manual? 0 Play Time 00:46:24 Cumulative 6.8 hours Start 2024.04.08 @ 14:25:57 End 2024.04.08 @ 21:07:54 Sessions 2 Manual Loads 0 Difficulty Adventurer Special Mode None Game No. 4 Rogue 0 Adventurer 4 Explorer 0 Win Type - Total 0 Types 0/0/0/0/0/0/0/0/0 Lore% 10 Gallery% 11 Achievement% 12 Wizard Run 0 Options --------- Layout 2 ASCII 0 Keyboard 0 Movement Mouse Keybinds 0 Fullscreen 1 Font 24/Smallcaps Map View 50x44 Zoom Use 0% Tactical HUD 1 Map Filters NONE Filters NONE Steam 1 RUN: 401bd033-2446-4012-9344-5f3973ebc84e